[Event "Late-Titled-Tuesday-Blitz-January-16-2024"]
[Site "Chess.com"]
[Date "2024.01.16"]
[Round "3"]
[White "tolimachess"]
[Black "Bryanl106"]
[Result "1-0"]
[WhiteElo "2443"]
[BlackElo "2586"]
[TimeControl "180+1"]
[EndTime "14:28:46 PST"]
[Termination "tolimachess won by checkmate"]

1. e4 {[%clk 0:02:44.2]} 1... e5 {[%clk 0:02:58]} 2. Nc3 {[%clk 0:02:39.7]} 2...
Nf6 {[%clk 0:02:57]} 3. g3 {[%clk 0:02:40.1]} 3... Bc5 {[%clk 0:02:44.9]} 4. Bg2
{[%clk 0:02:40]} 4... O-O {[%clk 0:02:44.8]} 5. h3 {[%clk 0:02:38]} 5... a6
{[%clk 0:02:44.8]} 6. a4 {[%clk 0:02:35.8]} 6... d6 {[%clk 0:02:44.6]} 7. Nge2
{[%clk 0:02:35.4]} 7... Nc6 {[%clk 0:02:42.2]} 8. O-O {[%clk 0:02:35.5]} 8... h6
{[%clk 0:02:42.4]} 9. d3 {[%clk 0:02:34.9]} 9... Re8 {[%clk 0:02:41.8]} 10. Be3
{[%clk 0:02:32.4]} 10... Bxe3 {[%clk 0:02:42]} 11. fxe3 {[%clk 0:02:33.3]} 11...
Be6 {[%clk 0:02:42]} 12. Nd5 {[%clk 0:02:32.4]} 12... Bxd5 {[%clk 0:02:41.7]}
13. exd5 {[%clk 0:02:33.3]} 13... Ne7 {[%clk 0:02:42.4]} 14. Nc3 {[%clk
0:02:27.8]} 14... c6 {[%clk 0:02:41.5]} 15. dxc6 {[%clk 0:02:22.7]} 15... Nxc6
{[%clk 0:02:42.4]} 16. Nd5 {[%clk 0:02:17.5]} 16... Nh7 {[%clk 0:02:18.6]} 17.
Qf3 {[%clk 0:01:59]} 17... Ng5 {[%clk 0:02:09.9]} 18. Qf2 {[%clk 0:01:59.1]}
18... Rf8 {[%clk 0:02:05.2]} 19. h4 {[%clk 0:01:56.2]} 19... Ne6 {[%clk
0:02:04.2]} 20. Bh3 {[%clk 0:01:56.7]} 20... Ne7 {[%clk 0:02:00.1]} 21. Bxe6
{[%clk 0:01:24.2]} 21... fxe6 {[%clk 0:02:00]} 22. Qxf8+ {[%clk 0:01:24.8]}
22... Qxf8 {[%clk 0:02:00.9]} 23. Rxf8+ {[%clk 0:01:24.8]} 23... Kxf8 {[%clk
0:02:01.8]} 24. Rf1+ {[%clk 0:01:24.2]} 24... Nf5 {[%clk 0:02:02.3]} 25. Nb6
{[%clk 0:01:17.8]} 25... Rd8 {[%clk 0:02:00.6]} 26. g4 {[%clk 0:01:12.7]} 26...
g6 {[%clk 0:02:00.7]} 27. e4 {[%clk 0:01:10.6]} 27... Kf7 {[%clk 0:01:58.7]} 28.
exf5 {[%clk 0:01:09.5]} 28... gxf5 {[%clk 0:01:59.6]} 29. gxf5 {[%clk 0:01:10]}
29... Rg8+ {[%clk 0:01:59.3]} 30. Kh2 {[%clk 0:01:10.6]} 30... Rg4 {[%clk
0:01:58.8]} 31. Kh3 {[%clk 0:01:04.6]} 31... Rb4 {[%clk 0:01:58.5]} 32. Nc4
{[%clk 0:00:58.6]} 32... exf5 {[%clk 0:01:54.9]} 33. Nxd6+ {[%clk 0:00:45.4]}
33... Ke6 {[%clk 0:01:55]} 34. Nxf5 {[%clk 0:00:42.1]} 34... Rxb2 {[%clk
0:01:55.3]} 35. Rf2 {[%clk 0:00:31.4]} 35... b5 {[%clk 0:01:52.9]} 36. axb5
{[%clk 0:00:31]} 36... a5 {[%clk 0:01:53]} 37. Ne3 {[%clk 0:00:24.8]} 37... a4
{[%clk 0:01:50.1]} 38. Nc4 {[%clk 0:00:25.1]} 38... Rxb5 {[%clk 0:01:49.5]} 39.
Rf1 {[%clk 0:00:19.2]} 39... Rb4 {[%clk 0:01:47.8]} 40. Ra1 {[%clk 0:00:19.3]}
40... Kd5 {[%clk 0:01:46.9]} 41. c3 {[%clk 0:00:19.6]} 41... Rb3 {[%clk
0:01:38.9]} 42. Ne3+ {[%clk 0:00:15.3]} 42... Ke6 {[%clk 0:01:30.8]} 43. Rxa4
{[%clk 0:00:15.1]} 43... Rxc3 {[%clk 0:01:31.4]} 44. Ra6+ {[%clk 0:00:14.1]}
44... Kf7 {[%clk 0:01:27.2]} 45. Kg4 {[%clk 0:00:14.2]} 45... Rxd3 {[%clk
0:01:27.1]} 46. Nf5 {[%clk 0:00:14.6]} 46... Rb3 {[%clk 0:01:22.9]} 47. Kh5
{[%clk 0:00:13.3]} 47... e4 {[%clk 0:01:16]} 48. Nd6+ {[%clk 0:00:13.3]} 48...
Kg7 {[%clk 0:01:13.6]} 49. Nxe4 {[%clk 0:00:13]} 49... Rb5+ {[%clk 0:01:13.4]}
50. Kg4 {[%clk 0:00:13.4]} 50... Rb4 {[%clk 0:01:12.4]} 51. Kf4 {[%clk
0:00:13.8]} 51... Kh7 {[%clk 0:01:04.2]} 52. Re6 {[%clk 0:00:12.7]} 52... Kg7
{[%clk 0:01:04]} 53. Kf5 {[%clk 0:00:12.5]} 53... Rb5+ {[%clk 0:01:03.9]} 54.
Re5 {[%clk 0:00:11.6]} 54... Rb7 {[%clk 0:01:04.5]} 55. h5 {[%clk 0:00:11.9]}
55... Rf7+ {[%clk 0:01:03.9]} 56. Kg4 {[%clk 0:00:12.6]} 56... Ra7 {[%clk
0:01:01.6]} 57. Nd6 {[%clk 0:00:12]} 57... Ra4+ {[%clk 0:01:00.2]} 58. Kf5
{[%clk 0:00:12]} 58... Ra7 {[%clk 0:00:58]} 59. Ne8+ {[%clk 0:00:11.4]} 59...
Kh7 {[%clk 0:00:56.9]} 60. Nf6+ {[%clk 0:00:11.4]} 60... Kg7 {[%clk 0:00:57.5]}
61. Nd5 {[%clk 0:00:10.8]} 61... Rf7+ {[%clk 0:00:57.1]} 62. Ke6 {[%clk
0:00:10.1]} 62... Rf1 {[%clk 0:00:55.6]} 63. Kd6 {[%clk 0:00:06.8]} 63... Ra1
{[%clk 0:00:55.3]} 64. Re7+ {[%clk 0:00:06.9]} 64... Kg8 {[%clk 0:00:54.8]} 65.
Ke6 {[%clk 0:00:07.3]} 65... Ra6+ {[%clk 0:00:48.4]} 66. Kf5 {[%clk 0:00:07.6]}
66... Kf8 {[%clk 0:00:47.9]} 67. Rh7 {[%clk 0:00:07.4]} 67... Kg8 {[%clk
0:00:48.4]} 68. Rb7 {[%clk 0:00:06.4]} 68... Kh8 {[%clk 0:00:39.8]} 69. Ne7
{[%clk 0:00:05.7]} 69... Ra5+ {[%clk 0:00:35.8]} 70. Kg6 {[%clk 0:00:05.7]}
70... Ra6+ {[%clk 0:00:33]} 71. Kf7 {[%clk 0:00:04.2]} 71... Rd6 {[%clk
0:00:16.3]} 72. Ng6+ {[%clk 0:00:04.4]} 72... Kh7 {[%clk 0:00:16.5]} 73. Nf8+
{[%clk 0:00:04.8]} 73... Kh8 {[%clk 0:00:16.7]} 74. Ne6 {[%clk 0:00:05.4]} 74...
Rd5 {[%clk 0:00:12.8]} 75. Kg6 {[%clk 0:00:04.9]} 75... Rd6 {[%clk 0:00:12.8]}
76. Rb8+ {[%clk 0:00:04.9]} 76... Rd8 {[%clk 0:00:12.3]} 77. Rxd8# {[%clk
0:00:05.8]} 1-0

[Event "Late-Titled-Tuesday-Blitz-January-16-2024"]
[Site "Chess.com"]
[Date "2024.01.16"]
[Round "3"]
[White "guillembaches"]
[Black "JM2005GM"]
[Result "0-1"]
[WhiteElo "2524"]
[BlackElo "2561"]
[TimeControl "180+1"]
[EndTime "14:28:48 PST"]
[Termination "JM2005GM won on time"]

1. d4 {[%clk 0:03:00.9]} 1... Nf6 {[%clk 0:02:58.6]} 2. Nf3 {[%clk 0:03:01.2]}
2... e6 {[%clk 0:02:56.6]} 3. Bg5 {[%clk 0:03:01.6]} 3... d5 {[%clk 0:02:50.6]}
4. Nbd2 {[%clk 0:03:01.1]} 4... Be7 {[%clk 0:02:50.4]} 5. e3 {[%clk 0:03:01.5]}
5... Nbd7 {[%clk 0:02:50.5]} 6. Bd3 {[%clk 0:03:01.3]} 6... b6 {[%clk
0:02:45.9]} 7. c3 {[%clk 0:03:00.1]} 7... Bb7 {[%clk 0:02:45.8]} 8. Qb1 {[%clk
0:02:56]} 8... h6 {[%clk 0:02:42.8]} 9. Bh4 {[%clk 0:02:52.4]} 9... c5 {[%clk
0:02:39.7]} 10. Ne5 {[%clk 0:02:41.9]} 10... Nxe5 {[%clk 0:02:36.3]} 11. dxe5
{[%clk 0:02:42]} 11... Nd7 {[%clk 0:02:36.9]} 12. Bxe7 {[%clk 0:02:40.3]} 12...
Qxe7 {[%clk 0:02:37.8]} 13. f4 {[%clk 0:02:38.9]} 13... O-O {[%clk 0:02:37.4]}
14. O-O {[%clk 0:02:32.2]} 14... f6 {[%clk 0:02:36.3]} 15. exf6 {[%clk
0:02:29.3]} 15... Rxf6 {[%clk 0:02:37.2]} 16. Bb5 {[%clk 0:02:24.5]} 16... Nf8
{[%clk 0:02:01]} 17. Nf3 {[%clk 0:02:14.1]} 17... a6 {[%clk 0:01:58.2]} 18. Bd3
{[%clk 0:02:08.2]} 18... Nd7 {[%clk 0:01:58.2]} 19. Bg6 {[%clk 0:01:14.7]} 19...
Raf8 {[%clk 0:01:55.8]} 20. Qd3 {[%clk 0:01:09.2]} 20... e5 {[%clk 0:01:49.5]}
21. fxe5 {[%clk 0:01:03.1]} 21... Nxe5 {[%clk 0:01:50.4]} 22. Nxe5 {[%clk
0:01:02.8]} 22... Qxe5 {[%clk 0:01:51.3]} 23. Rxf6 {[%clk 0:01:00.4]} 23... Rxf6
{[%clk 0:01:47.3]} 24. Rf1 {[%clk 0:00:41.8]} 24... Rxf1+ {[%clk 0:01:23.2]} 25.
Kxf1 {[%clk 0:00:42.7]} 25... Qf6+ {[%clk 0:01:23.4]} 26. Qf5 {[%clk 0:00:40.3]}
26... Qxf5+ {[%clk 0:01:20.9]} 27. Bxf5 {[%clk 0:00:40.7]} 27... Kf7 {[%clk
0:01:21.8]} 28. Kf2 {[%clk 0:00:40.6]} 28... Kf6 {[%clk 0:01:21.9]} 29. Bd3
{[%clk 0:00:39.9]} 29... Ke5 {[%clk 0:01:22.4]} 30. g3 {[%clk 0:00:39.9]} 30...
b5 {[%clk 0:01:23]} 31. Ke2 {[%clk 0:00:37.7]} 31... Bc8 {[%clk 0:01:21.5]} 32.
a3 {[%clk 0:00:36.8]} 32... d4 {[%clk 0:01:18.1]} 33. cxd4+ {[%clk 0:00:33.2]}
33... cxd4 {[%clk 0:01:19]} 34. Kd2 {[%clk 0:00:32.5]} 34... Be6 {[%clk
0:01:13.6]} 35. Bc2 {[%clk 0:00:30.1]} 35... Bd7 {[%clk 0:01:11.5]} 36. Bd3
{[%clk 0:00:30.3]} 36... g5 {[%clk 0:00:56.5]} 37. Bc2 {[%clk 0:00:30.1]} 37...
h5 {[%clk 0:00:56.5]} 38. Bd3 {[%clk 0:00:30.1]} 38... h4 {[%clk 0:00:57.2]} 39.
Bc2 {[%clk 0:00:30.1]} 39... a5 {[%clk 0:00:48.3]} 40. Ke2 {[%clk 0:00:30]}
40... b4 {[%clk 0:00:40.4]} 41. axb4 {[%clk 0:00:29.5]} 41... axb4 {[%clk
0:00:41.3]} 42. Kf2 {[%clk 0:00:28.1]} 42... Bc6 {[%clk 0:00:39.3]} 43. Ke2
{[%clk 0:00:26.1]} 43... Be4 {[%clk 0:00:28]} 44. exd4+ {[%clk 0:00:21.9]} 44...
Kxd4 {[%clk 0:00:27.7]} 45. Bb3 {[%clk 0:00:21]} 45... Bc6 {[%clk 0:00:23.7]}
46. Kd2 {[%clk 0:00:19.8]} 46... Ke4 {[%clk 0:00:23.1]} 47. Ke2 {[%clk
0:00:18.9]} 47... Bb5+ {[%clk 0:00:23.4]} 48. Kf2 {[%clk 0:00:16.8]} 48... Kd3
{[%clk 0:00:24.1]} 49. gxh4 {[%clk 0:00:16.5]} 49... gxh4 {[%clk 0:00:24.2]} 50.
Kf3 {[%clk 0:00:16.5]} 50... Bd7 {[%clk 0:00:23.9]} 51. Kf4 {[%clk 0:00:14.5]}
51... Kd2 {[%clk 0:00:22.5]} 52. h3 {[%clk 0:00:14.5]} 52... Bxh3 {[%clk
0:00:21.4]} 53. Kg5 {[%clk 0:00:14.9]} 53... Kc1 {[%clk 0:00:21.2]} 54. Kxh4
{[%clk 0:00:15.1]} 54... Kxb2 {[%clk 0:00:21.5]} 55. Bd5 {[%clk 0:00:15]} 55...
Bf1 {[%clk 0:00:21.5]} 56. Kg3 {[%clk 0:00:15.2]} 56... Bd3 {[%clk 0:00:18.1]}
57. Kf2 {[%clk 0:00:15.1]} 57... Kc3 {[%clk 0:00:17.9]} 58. Ke3 {[%clk
0:00:14.4]} 58... Bc4 {[%clk 0:00:18.4]} 59. Be4 {[%clk 0:00:09.8]} 59... b3
{[%clk 0:00:18.7]} 60. Bb1 {[%clk 0:00:09.8]} 60... b2 {[%clk 0:00:18.4]} 61.
Bf5 {[%clk 0:00:09.8]} 61... Bb3 {[%clk 0:00:19]} 62. Bb1 {[%clk 0:00:07.3]}
62... Bc2 {[%clk 0:00:18.8]} 63. Ba2 {[%clk 0:00:07.6]} 63... Bg6 {[%clk
0:00:15.9]} 64. Ke2 {[%clk 0:00:07.6]} 64... Kc2 {[%clk 0:00:16.4]} 65. Ke1
{[%clk 0:00:07]} 65... Bd3 {[%clk 0:00:13.2]} 66. Kf2 {[%clk 0:00:06.1]} 66...
Bc4 {[%clk 0:00:13.9]} 0-1

[Event "Late-Titled-Tuesday-Blitz-January-16-2024"]
[Site "Chess.com"]
[Date "2024.01.16"]
[Round "3"]
[White "ritanovikova"]
[Black "Statham_01"]
[Result "1/2-1/2"]
[WhiteElo "2181"]
[BlackElo "2541"]
[TimeControl "180+1"]
[EndTime "14:28:48 PST"]
[Termination "Game drawn - insufficient material"]

1. e4 {[%clk 0:02:58.3]} 1... e6 {[%clk 0:02:59.2]} 2. d4 {[%clk 0:02:58.4]}
2... d5 {[%clk 0:02:59.9]} 3. exd5 {[%clk 0:02:59.3]} 3... exd5 {[%clk
0:03:00.8]} 4. Bd3 {[%clk 0:02:59.9]} 4... Nc6 {[%clk 0:03:01]} 5. c3 {[%clk
0:02:57.3]} 5... Bd6 {[%clk 0:03:01.2]} 6. h3 {[%clk 0:02:57.3]} 6... Nge7
{[%clk 0:03:01.3]} 7. Nf3 {[%clk 0:02:57.6]} 7... Bf5 {[%clk 0:03:01.9]} 8. Qc2
{[%clk 0:02:55.8]} 8... Qd7 {[%clk 0:03:01.9]} 9. Be3 {[%clk 0:02:53]} 9... f6
{[%clk 0:03:00.1]} 10. Nbd2 {[%clk 0:02:52.9]} 10... a6 {[%clk 0:02:53.4]} 11.
g4 {[%clk 0:02:50.5]} 11... Bg6 {[%clk 0:02:49.3]} 12. Nh4 {[%clk 0:02:47.7]}
12... Bxd3 {[%clk 0:02:48.6]} 13. Qxd3 {[%clk 0:02:48.6]} 13... O-O-O {[%clk
0:02:34.6]} 14. O-O-O {[%clk 0:02:47.4]} 14... Kb8 {[%clk 0:02:27.9]} 15. Kb1
{[%clk 0:02:47.1]} 15... g6 {[%clk 0:02:26.3]} 16. f4 {[%clk 0:02:43.4]} 16...
Nc8 {[%clk 0:02:25.8]} 17. f5 {[%clk 0:02:37.2]} 17... g5 {[%clk 0:02:24.5]} 18.
Nhf3 {[%clk 0:02:29.6]} 18... Nb6 {[%clk 0:02:24.9]} 19. Nb3 {[%clk 0:02:22.8]}
19... Nc4 {[%clk 0:02:19.8]} 20. Bc1 {[%clk 0:02:22.4]} 20... b6 {[%clk
0:02:15.8]} 21. Nfd2 {[%clk 0:02:21.1]} 21... b5 {[%clk 0:02:04.9]} 22. Nf3
{[%clk 0:02:16.1]} 22... Rhe8 {[%clk 0:01:59.8]} 23. Rhe1 {[%clk 0:02:14.8]}
23... a5 {[%clk 0:01:54.1]} 24. Nbd2 {[%clk 0:02:12.6]} 24... Bf4 {[%clk
0:01:41.1]} 25. Nxc4 {[%clk 0:02:10.6]} 25... dxc4 {[%clk 0:01:35.5]} 26. Qc2
{[%clk 0:02:05.7]} 26... Bxc1 {[%clk 0:01:35.5]} 27. Rxc1 {[%clk 0:02:05.2]}
27... Qd5 {[%clk 0:01:34.9]} 28. Qf2 {[%clk 0:01:58.1]} 28... b4 {[%clk
0:01:31.3]} 29. Rxe8 {[%clk 0:01:52.5]} 29... Rxe8 {[%clk 0:01:31]} 30. Re1
{[%clk 0:01:27.5]} 30... Re4 {[%clk 0:01:21.8]} 31. Nd2 {[%clk 0:01:19.2]} 31...
Rxe1+ {[%clk 0:01:16.4]} 32. Qxe1 {[%clk 0:01:20.1]} 32... a4 {[%clk 0:00:42.3]}
33. a3 {[%clk 0:01:18.1]} 33... b3 {[%clk 0:00:30.3]} 34. Qe8+ {[%clk
0:01:17.3]} 34... Ka7 {[%clk 0:00:19.2]} 35. Ne4 {[%clk 0:01:15.4]} 35... h5
{[%clk 0:00:14.2]} 36. Qe6 {[%clk 0:01:14.3]} 36... Qxe6 {[%clk 0:00:06.4]} 37.
fxe6 {[%clk 0:01:15.2]} 37... hxg4 {[%clk 0:00:05.4]} 38. hxg4 {[%clk
0:01:16.1]} 38... Kb6 {[%clk 0:00:01.9]} 39. d5 {[%clk 0:01:11.2]} 39... Ne7
{[%clk 0:00:02.8]} 40. Nxf6 {[%clk 0:01:08.1]} 40... Kc5 {[%clk 0:00:03.2]} 41.
Kc1 {[%clk 0:01:04.7]} 41... Kd6 {[%clk 0:00:03.8]} 42. Ne4+ {[%clk 0:00:59.5]}
42... Kxd5 {[%clk 0:00:04.4]} 43. Nxg5 {[%clk 0:00:59.4]} 43... Ke5 {[%clk
0:00:05.1]} 44. Kd2 {[%clk 0:00:55.8]} 44... Kf4 {[%clk 0:00:05.6]} 45. Nf7
{[%clk 0:00:54.8]} 45... Kxg4 {[%clk 0:00:06.1]} 46. Ne5+ {[%clk 0:00:55.3]}
46... Kf5 {[%clk 0:00:06.2]} 47. Nxc4 {[%clk 0:00:55.9]} 47... Kxe6 {[%clk
0:00:06.6]} 48. Ne3 {[%clk 0:00:53.9]} 48... Nc6 {[%clk 0:00:05.2]} 49. Kd3
{[%clk 0:00:52.6]} 49... Kd6 {[%clk 0:00:05.6]} 50. Kc4 {[%clk 0:00:51.3]} 50...
Ne5+ {[%clk 0:00:04.8]} 51. Kb5 {[%clk 0:00:49.8]} 51... Nd3 {[%clk 0:00:03.7]}
52. Nd1 {[%clk 0:00:50.4]} 52... c5 {[%clk 0:00:02]} 53. Kxa4 {[%clk 0:00:50.3]}
53... Kc6 {[%clk 0:00:02.7]} 54. Kxb3 {[%clk 0:00:48.9]} 54... Ne5 {[%clk
0:00:02.3]} 55. a4 {[%clk 0:00:47.9]} 55... c4+ {[%clk 0:00:02.9]} 56. Kc2
{[%clk 0:00:48]} 56... Kb6 {[%clk 0:00:03.2]} 57. b3 {[%clk 0:00:47.3]} 57...
Ka5 {[%clk 0:00:03.1]} 58. Ne3 {[%clk 0:00:46.6]} 58... cxb3+ {[%clk 0:00:02.6]}
59. Kxb3 {[%clk 0:00:47.5]} 59... Nc6 {[%clk 0:00:03.1]} 60. Nc4+ {[%clk
0:00:47.2]} 60... Ka6 {[%clk 0:00:03.7]} 61. Nd6 {[%clk 0:00:43.5]} 61... Ne5
{[%clk 0:00:03.3]} 62. Kb4 {[%clk 0:00:42.1]} 62... Nd3+ {[%clk 0:00:03.4]} 63.
Kc4 {[%clk 0:00:41.3]} 63... Nb2+ {[%clk 0:00:03.9]} 64. Kb3 {[%clk 0:00:41.8]}
64... Nd3 {[%clk 0:00:04.4]} 65. Ne4 {[%clk 0:00:41.5]} 65... Nc1+ {[%clk
0:00:04.1]} 66. Kb4 {[%clk 0:00:40.9]} 66... Nd3+ {[%clk 0:00:03.6]} 67. Kb3
{[%clk 0:00:40.1]} 67... Ka5 {[%clk 0:00:03.4]} 68. Nd2 {[%clk 0:00:38.4]} 68...
Nc5+ {[%clk 0:00:03.3]} 69. Ka3 {[%clk 0:00:38.5]} 69... Nxa4 {[%clk 0:00:02.8]}
70. Nb3+ {[%clk 0:00:36.8]} 70... Kb5 {[%clk 0:00:03]} 71. Nd4+ {[%clk
0:00:36.6]} 71... Kc4 {[%clk 0:00:03.2]} 72. Kxa4 {[%clk 0:00:36.6]} 72... Kxc3
{[%clk 0:00:04.1]} 1/2-1/2

[Event "Late-Titled-Tuesday-Blitz-January-16-2024"]
[Site "Chess.com"]
[Date "2024.01.16"]
[Round "3"]
[White "jjbolanos"]
[Black "GMJustin"]
[Result "1/2-1/2"]
[WhiteElo "2052"]
[BlackElo "2334"]
[TimeControl "180+1"]
[EndTime "14:28:48 PST"]
[Termination "Game drawn - insufficient material"]

1. e4 {[%clk 0:03:00.9]} 1... c6 {[%clk 0:02:10.2]} 2. Nf3 {[%clk 0:02:57.3]}
2... d5 {[%clk 0:02:09.6]} 3. Nc3 {[%clk 0:02:57.5]} 3... g6 {[%clk 0:02:08.2]}
4. d4 {[%clk 0:02:38.9]} 4... Bg7 {[%clk 0:02:05.9]} 5. e5 {[%clk 0:02:38.9]}
5... Bg4 {[%clk 0:02:00.2]} 6. h3 {[%clk 0:02:37.2]} 6... Bxf3 {[%clk 0:01:59]}
7. Qxf3 {[%clk 0:02:30.4]} 7... f6 {[%clk 0:01:57.6]} 8. exf6 {[%clk 0:02:05.3]}
8... exf6 {[%clk 0:01:56.1]} 9. Bd3 {[%clk 0:01:59.5]} 9... Ne7 {[%clk
0:01:53.5]} 10. O-O {[%clk 0:01:59.3]} 10... O-O {[%clk 0:01:51.9]} 11. Re1
{[%clk 0:01:58.8]} 11... Rf7 {[%clk 0:01:44.4]} 12. Bf4 {[%clk 0:01:51.9]} 12...
Nd7 {[%clk 0:01:43.3]} 13. h4 {[%clk 0:01:41.7]} 13... Ne5 {[%clk 0:01:33]} 14.
Qe2 {[%clk 0:00:55.9]} 14... Nxd3 {[%clk 0:01:31.1]} 15. Qxd3 {[%clk 0:00:56.4]}
15... Qd7 {[%clk 0:01:26.8]} 16. Re2 {[%clk 0:00:39]} 16... Qf5 {[%clk
0:01:10.7]} 17. Rae1 {[%clk 0:00:15.6]} 17... Qxd3 {[%clk 0:01:08.5]} 18. cxd3
{[%clk 0:00:16.5]} 18... Nf5 {[%clk 0:01:07.4]} 19. Re8+ {[%clk 0:00:08.5]}
19... Rxe8 {[%clk 0:01:03.2]} 20. Rxe8+ {[%clk 0:00:09.4]} 20... Rf8 {[%clk
0:01:03.3]} 21. Rxf8+ {[%clk 0:00:06.1]} 21... Bxf8 {[%clk 0:01:01]} 22. h5
{[%clk 0:00:06.5]} 22... Nxd4 {[%clk 0:00:59.1]} 23. Be3 {[%clk 0:00:06.3]}
23... Nc2 {[%clk 0:00:25.4]} 24. Bxa7 {[%clk 0:00:05.3]} 24... b5 {[%clk
0:00:25.4]} 25. hxg6 {[%clk 0:00:04.8]} 25... hxg6 {[%clk 0:00:24.8]} 26. d4
{[%clk 0:00:04.1]} 26... f5 {[%clk 0:00:19.6]} 27. b3 {[%clk 0:00:03.6]} 27...
b4 {[%clk 0:00:10.2]} 28. Ne2 {[%clk 0:00:02.9]} 28... Kf7 {[%clk 0:00:09.9]}
29. Nc1 {[%clk 0:00:03]} 29... Bg7 {[%clk 0:00:09.7]} 30. Nd3 {[%clk 0:00:03.6]}
30... Bxd4 {[%clk 0:00:09.5]} 31. Bxd4 {[%clk 0:00:03.2]} 31... Nxd4 {[%clk
0:00:09.8]} 32. Nxb4 {[%clk 0:00:03.1]} 32... Ke6 {[%clk 0:00:10.3]} 33. Kf1
{[%clk 0:00:02.5]} 33... c5 {[%clk 0:00:09.8]} 34. Nd3 {[%clk 0:00:03.2]} 34...
Kd6 {[%clk 0:00:09.4]} 35. Nf4 {[%clk 0:00:03.2]} 35... g5 {[%clk 0:00:09.4]}
36. Nh3 {[%clk 0:00:03.5]} 36... g4 {[%clk 0:00:09]} 37. Nf4 {[%clk 0:00:04.2]}
37... Nc2 {[%clk 0:00:07.6]} 38. g3 {[%clk 0:00:03.8]} 38... d4 {[%clk
0:00:06.1]} 39. Ke2 {[%clk 0:00:03.9]} 39... Nb4 {[%clk 0:00:05.1]} 40. Nd3
{[%clk 0:00:04.3]} 40... Nxa2 {[%clk 0:00:03.9]} 41. Kd2 {[%clk 0:00:04.2]}
41... Nb4 {[%clk 0:00:03.7]} 42. Ne1 {[%clk 0:00:03.2]} 42... Ke5 {[%clk
0:00:03.4]} 43. Ng2 {[%clk 0:00:03.3]} 43... Ke4 {[%clk 0:00:03.4]} 44. Nh4
{[%clk 0:00:03.1]} 44... Nd5 {[%clk 0:00:03.3]} 45. Ng6 {[%clk 0:00:02.8]} 45...
Nc3 {[%clk 0:00:03]} 46. Ne7 {[%clk 0:00:02.9]} 46... Kf3 {[%clk 0:00:02.4]} 47.
Nxf5 {[%clk 0:00:02.8]} 47... Kxf2 {[%clk 0:00:02]} 48. Kd3 {[%clk 0:00:03.3]}
48... Kf3 {[%clk 0:00:01.9]} 49. Kc4 {[%clk 0:00:03.1]} 49... Ne2 {[%clk
0:00:01.7]} 50. Kxc5 {[%clk 0:00:03.3]} 50... Nxg3 {[%clk 0:00:01.8]} 51. Nxd4+
{[%clk 0:00:03.5]} 51... Ke4 {[%clk 0:00:01.3]} 52. Nc2 {[%clk 0:00:03.1]} 52...
Nf5 {[%clk 0:00:01.4]} 53. b4 {[%clk 0:00:03.5]} 53... g3 {[%clk 0:00:01.6]} 54.
Ne1 {[%clk 0:00:03.9]} 54... Ke3 {[%clk 0:00:01.7]} 55. b5 {[%clk 0:00:03.7]}
55... Kf2 {[%clk 0:00:01.7]} 56. Nd3+ {[%clk 0:00:02.2]} 56... Kf1 {[%clk
0:00:01.7]} 57. Nf4 {[%clk 0:00:02.4]} 57... Ne7 {[%clk 0:00:01.8]} 58. b6
{[%clk 0:00:02.3]} 58... Ng8 {[%clk 0:00:01.2]} 59. b7 {[%clk 0:00:02.1]} 59...
Nf6 {[%clk 0:00:01.4]} 60. Kb6 {[%clk 0:00:01.5]} 60... Nd7+ {[%clk 0:00:01.2]}
61. Kc7 {[%clk 0:00:01.3]} 61... Nc5 {[%clk 0:00:01.5]} 62. Kc6 {[%clk
0:00:01.5]} 62... Na6 {[%clk 0:00:01.6]} 63. Kb6 {[%clk 0:00:01.8]} 63... Nb8
{[%clk 0:00:01.6]} 64. Kc7 {[%clk 0:00:02.4]} 64... Na6+ {[%clk 0:00:01.7]} 65.
Kc8 {[%clk 0:00:03.1]} 65... g2 {[%clk 0:00:01.4]} 66. Nxg2 {[%clk 0:00:03.5]}
66... Kxg2 {[%clk 0:00:01.8]} 67. Kd7 {[%clk 0:00:04.1]} 67... Kf3 {[%clk
0:00:01.9]} 68. Kc6 {[%clk 0:00:04.6]} 68... Ke4 {[%clk 0:00:02.1]} 69. Kb6
{[%clk 0:00:05.2]} 69... Nb8 {[%clk 0:00:02.1]} 70. Kc7 {[%clk 0:00:05.8]} 70...
Na6+ {[%clk 0:00:02.3]} 71. Kc8 {[%clk 0:00:05.9]} 71... Kd5 {[%clk 0:00:02.2]}
72. b8=Q {[%clk 0:00:06.8]} 72... Nxb8 {[%clk 0:00:02]} 1/2-1/2